{"text_format":"3","workbook":"xlsx","n_sheets":1,"sheets":["PRICING SCHEDULE"],"not_rendered":{"images":1,"defined_names":2},"read":"whole","date_system":"1900"}

{"sheet":"PRICING SCHEDULE","index":0,"n_rows":31,"n_cols":23,"rows_kept":31,"merged":[[11,2,11,3],[12,5,14,5],[16,4,16,6],[16,7,16,9],[16,10,16,12],[16,13,16,15],[16,16,16,18],[27,1,30,1],[27,2,27,3],[27,4,27,5],[28,2,28,3],[29,2,29,3],[29,4,29,5],[30,2,30,3],[30,4,30,5]]}
[null,"SUPPLY CHAIN MANAGEMENT"]
[null,"Pricing schedule"]
["RFB No","RFB 2785-2023"]
["RFB Title","Request to purchase a MB Multimaster 38 One Step Mailing Machine with a Five (5) year maintenance contract"]
["Bidder Name "]
[]
["1. INSTRUCTION FOR COMPLETING THE PRICING SCHEDULE"]
["(a)  Bidder must complete/enter YELLOW cells only"]
["(b)  Unit and Line prices must be VAT EXCLUSIVE and in South African Rand (ZAR) currency."]
["(c) The price must include all cost to deliver the goods or render the service, including all applicable taxes, duty fees, logistics/delivery, storage, labour, overtime and subsistance and travel"]
["(d)  Prices that are dependent on Rate of Exchange (ROE) must use ROE indicated below, then enter in Column \"Forex %\" the percentage of the price that is ROE dependent (0% means the price is not ROE dependent)"]
[null,"Foreign currency","South African Rand (ZAR) exchange rate "]
[null,"1 US Dollar",{"v":18.83,"d":"R18.83"},null,null,"Mark with an X, which ROE is applicable"]
[null,"1 Euro",{"v":20.63,"d":"R20.63"}]
[null,"1 Pound (UK)",{"v":24.09,"d":"R24.09"}]
[]
[{"$nulls":4},"YEAR 1",null,null,"YEAR 2",null,null,"YEAR 3",null,null,"YEAR 4",null,null,"YEAR 5",null,null,"TOTAL"]
["Item No","Goods/Service description","Unit of measure","Forex %","Qty ","Unit Price \n(Excl VAT)","Line Price Y1","Qty","Unit Price \n(Excl VAT)","Line Price Y2","Qty","Unit Price \n(Excl VAT)","Line Price Y3","Qty","Unit Price \n(Excl VAT)","Line Price Y4","Qty","Unit Price \n(Excl VAT)","Line Price Y5","Line Price Term \n(Excl VAT)","Forex Price portion","BRAND / MODEL","Price clarification comment"]
[1,{"$nulls":5},{"$f":"SUBTOTAL(9, G20:G22)","v":0},null,null,{"$f":"SUBTOTAL(9, J20:J22)","v":0},null,null,{"$f":"SUBTOTAL(9, M20:M22)","v":0},null,null,{"$f":"SUBTOTAL(9, P20:P22)","v":0},null,null,{"$f":"SUBTOTAL(9, S20:S22)","v":0},{"$f":"SUBTOTAL(9, T20:T22)","v":0},{"$f":"SUBTOTAL(9, U20:U22)","v":0}]
["1.1","One Step Mailing Machine","each",{"v":0,"d":"0%"},1,0,{"$f":"E20*F20","v":0},null,null,{"$f":"H20*I20","v":0},null,null,{"$f":"K20*L20","v":0},null,null,{"$f":"N20*O20","v":0},null,null,{"$f":"Q20*R20","v":0},{"$f":"G20+J20+M20+P20","v":0},{"$f":"D20*T20","v":0}]
["1.2","Maintenance and Support ","monthly",{"v":0,"d":"0%"},12,0,0,12,0,{"$f":"H21*I21","v":0},12,0,0,12,0,0,12,0,{"$f":"Q21*R21","v":0},{"$f":"G21+J21+M21+P21","v":0},{"$f":"D21*T21","v":0}]
[2,"30L Water Base Glue One Step Mailer (GLUE-6271VL)","monthly",{"v":0,"d":"0%"},12,0,0,12,0,0,12,0,0,12,0,0,12,0,{"$f":"Q22*R22","v":0},0,{"$f":"D22*T22","v":0}]
[null,"SUB - TOTAL  (EXCL VAT)",{"$nulls":4},{"$f":"SUBTOTAL(9,G20:G22)","v":0},null,null,{"$f":"SUBTOTAL(9,J20:J22)","v":0},null,null,{"$f":"SUBTOTAL(9,M20:M22)","v":0},null,null,{"$f":"SUBTOTAL(9,P20:P22)","v":0},null,null,{"$f":"SUBTOTAL(9,S20:S22)","v":0},{"$f":"SUBTOTAL(9,T20:T22)","v":0}," R                             -  "]
[null,"VAT (@15%)",{"$nulls":4},{"$f":"G23*0.15","v":0},null,null,{"$f":"J23*0.15","v":0},null,null,{"$f":"M23*0.15","v":0},null,null,{"$f":"P23*0.15","v":0},null,null,{"$f":"S23*0.15","v":0},{"$f":"T23*0.15","v":0}]
[null,"TOTAL  BID PRICE (INCL VAT)",{"$nulls":4},{"$f":"G23+G24","v":0},null,null,{"$f":"J23+J24","v":0},null,null,{"$f":"M23+M24","v":0},null,null,{"$f":"P23+P24","v":0},null,null,{"$f":"S23+S24","v":0},{"$f":"T23+T24","v":0}]
[]
[]
[null,"I, the bidder, confirm that the price(s) and rate(s) quoted cover all the goods and/or works specified in the bidding documents; that the price(s) or rate(s) cover all my obligations and I accept that any mistakes regarding price(s), rate(s) or calculations will be at my own risk.\n[Note: First convert to PDF, then add signature]"]
[null,null,"Name",null,"    Capacity"]
[]
[null,null,"Signature (above)",null,"Date"]